Cogmind - Beta 16 @@@ ROGUE MODE // 2025.10.25 @ 20:17:02 Player: Rocko1345 Result: Destroyed by Y-45 Defender with Beam Rifle Performance ------------- Evolutions (1) 500 Regions Visited (2) 400 Robots Destroyed (14) 70 Value Destroyed (248) 248 Prototype IDs (2) 40 Alien Tech Used (0) 0 Bonus (0) 0 TOTAL SCORE: 1258 Bonus ------- None Cogmind --------- Core Integrity 0/400 Matter 300/300 Energy 100/100 System Corruption 1% Temperature Cool (9) Movement Core (50) Location -9/Materials Parts ------- > --- POWER (1) -------- (None) > --- PROPULSION (2) --- (None) > --- UTILITY (4) ------ Signal Interpreter Targeting Computer > --- WEAPON (2) ------- (None) > --- INVENTORY (5) ---- Assault Rifle Datajack Peak State ------------ > --- POWER ------------ Light Deuterium Engine > --- PROPULSION ------- Flight Unit VTOL Module > --- UTILITY ---------- Weight Redist. System Signal Interpreter Targeting Computer > --- WEAPON ----------- Assault Rifle Autogun > --- INVENTORY -------- Light Ion Engine Assault Rifle Datajack [Rating: 13] Favorites ----------- Power Light Ion Engine Engine Light Ion Engine Propulsion Aluminum Leg Leg Aluminum Leg Flight Unit VTOL Module Utility Targeting Computer Device Weight Redist. System Storage Small Storage Unit Processor Targeting Computer Weapon Assault Rifle Ballistic Gun Assault Rifle Launcher EMP Blaster Build | -11 -10 -9 ------- Run | Yrd Mat Mat Slots Evolved 2 | . . 2 Power . | . . . Propulsion . | . . . Utility 2 | . . 2 Weapon . | . . . Parts Attached 15 | 6 4 5 Power 2 | 1 . 1 Engine 2 | 1 . 1 Core . | . . . Reactor . | . . . Propulsion 5 | 2 2 1 Treads . | . . . Leg 2 | 2 . . Wheel . | . . . Hover . | . . . Flight 3 | . 2 1 Utility 4 | 1 2 1 Device 1 | . . 1 Storage 1 | 1 . . Processor 2 | . 2 . Hackware . | . . . Protection . | . . . Artifact . | . . . Weapon 4 | 2 . 2 Energy Gun . | . . . Energy Cannon . | . . . Ballistic Gun 3 | 2 . 1 Ballistic Cannon . | . . . Launcher 1 | . . 1 Special Weapon . | . . . Impact Weapon . | . . . Slashing Weapon . | . . . Piercing Weapon . | . . . Special Melee Weapon . | . . . Unidentified Prototypes . | . . . Parts Lost 8 | . . 8 Power 1 | . . 1 Propulsion 3 | . . 3 Utility 1 | . . 1 Weapon 3 | . . 3 Highest Loss Streak 7 | . . 7 To Critical Strikes . | . . . Average Backups . | . . 1 Power . | . . . Propulsion . | . . . Utility . | . . . Weapon . | . . . Tool/Special . | . . . Unused Backups 1 | . . 1 Power . | . . . Propulsion . | . . . Utility . | . . . Weapon . | . . . Tool/Special 1 | . . 1 Average Slot Usage (%) 84 | . 96 71 Engine 12 | . 14 10 Leg 13 | . 25 . Flight 9 | . 1 17 Device 1 | . . 2 Storage 6 | . 12 . Processor 17 | . 12 22 Ballistic Gun 22 | . 28 17 Peak Build Rating 13 | 6 9 13 Average Rating 7 | 4 6 8 On Entrance 5 | . 6 9 Avg Prop Armor Cover (%) . | . . . Naked Turns . | . . . Heaviest Build 12 | 12 12 10 Greatest Support 20 | 20 20 14 Greatest Overweight (x) 2 | . 2 1 Average Overweight (x) . | . . . Largest Inventory Capacity 8 | 8 8 5 Average Capacity 6 | 7 7 5 Most Carried 3 | . 1 3 Average Carried . | . . 1 Final Capacity 8 | 8 5 5 Final Carried 2 | . . 2 Class Distribution -------------------- 74% | Mutant 25% | Sprinter Dominant Class ---------------- Mutant | -10/Materials Mutant | -9/Materials Resources | -11 -10 -9 ----------- Run | Yrd Mat Mat Matter Collected 525 | 259 47 219 Remotely . | . . . Salvage Created 326 | . 75 251 Parts 29 | . 9 20 Haulers Intercepted . | . . . Recyclers Shooed 1 | . . 1 Parts Field Recycled . | . . . Retrieved Matter . | . . . Parts Self-Destructed . | . . . Prevented . | . . . Parts Restored . | . . . Kills | -11 -10 -9 ------- Run | Yrd Mat Mat Combat Hostiles Destroyed 11 | . 3 8 Guns 8 | . 3 5 AOE 3 | . . 3 Classes Destroyed 4 | . 2 2 Operator 1 | . . 1 Watcher 2 | . 1 1 Swarmer 9 | . 3 6 Sentry 2 | . . 2 Best Kill Streak 4 | . 3 4 Combat Bots Only 4 | . 3 4 Max Kills in Single Turn 2 | . 1 2 Gunslinging . | . . . Exploded 2 | . . 2 Melee . | . . . Uniques/NPCs Destroyed . | . . . Combat | -11 -10 -9 -------- Run | Yrd Mat Mat Hostile Shots Fired 115 | . 17 98 Missed 35 | . 3 32 Hits 80 | . 14 66 Melee 2 | . . 2 Projectile 78 | . 14 64 Critical Strikes 1 | . . 1 Damage Taken 1046 | . 105 941 Core 436 | . 25 411 Absorbed by Shields . | . . . Core Remaining (%) 95 | 100 90 . Volleys Fired 35 | . 6 29 Largest 2 | . 2 2 Hottest 43 | . 40 43 Shots Fired 62 | . 12 50 Gun 54 | . 12 42 Cannon . | . . . Launcher 8 | . . 8 Special . | . . . Kinetic 54 | . 12 42 Thermal . | . . . Explosive . | . . . Electromagnetic 8 | . . 8 Robot Hit Streak 7 | . 4 7 Robot Miss Streak 2 | . 2 2 Penetration Max . | . . . Secondary Targets 1 | . . 1 Max Gunslinging Chain 1 | . . 1 Shots Hit Robots 43 | . 8 35 Core Hits 21 | . 4 17 Critical Kills . | . . . Critical Parts Destroyed . | . . . Critical Strikes . | . . . Melee Attacks . | . . . Impact . | . . . Slashing . | . . . Piercing . | . . . Sneak Attacks . | . . . Combat Hostiles . | . . . Follow-up Attacks . | . . . Damage Inflicted 763 | . 100 663 Guns 541 | . 100 441 Cannons . | . . . Explosions 169 | . . 169 Melee . | . . . Ramming 53 | . . 53 Kinetic 541 | . 100 441 Thermal 15 | . . 15 Explosive . | . . . Electromagnetic 154 | . . 154 Impact . | . . . Slashing . | . . . Piercing . | . . . Highest Corruption 1 | . . 1 Average Corruption 1 | . . 1 Corruption Purged . | . . . Corruption Blocked . | . . . Overload Shots . | . . . Overflow Damage . | . . . Projectiles . | . . . Explosions . | . . . Melee . | . . . Knockbacks . | . . . Impact . | . . . Kinetic . | . . . Secondary . | . . . Self-Inflicted Damage 104 | . . 104 Shots 4 | . . 4 Rammed 16 | . . 16 Targets Rammed 16 | . . 16 Kicked . | . . . Crushed . | . . . Highest Temperature 26 | . . 26 Average Temperature 10 | . . 10 Received Heat Transfer 207 | . . 207 Siege Activations . | . . . Martial Activations . | . . . Shielding Activations . | . . . Robots Disrupted . | . . . Combat Hostiles . | . . . Robots Corrupted . | . . . Combat Hostiles . | . . . Parts Fried 1 | . . 1 Impact Corruptions . | . . . Robots Melted . | . . . Combat Hostiles . | . . . Parts Melted . | . . . Heat Transferred 50 | . . 50 Parts Sabotaged . | . . . Parts Stolen . | . . . Parts Stripped . | . . . Power Chain Reactions 2 | . . 2 Alert | -11 -10 -9 ------- Run | Yrd Mat Mat Maximum Alert Level 1 | . . 1 Low Security (%) 97 | 100 100 94 Level 1 2 | . . 5 Level 2 . | . . . Level 3 . | . . . Level 4 . | . . . Level 5 . | . . . High Security . | . . . Max Security . | . . . Peak Influence 215 | . 60 215 Initial . | . . . Average 40 | . 16 79 Influence Increases 450 | . 94 356 Destroy 0b10 Robot/C 220 | . 60 160 Destroy 0b10 Robot/NC 15 | . 5 10 Destroy Leader 44 | . 12 32 Successful Hack 45 | . 16 29 Disable Machine 30 | . . 30 Destroy Structure 6 | . 1 5 Partial Spotted 15 | . . 15 Lose Combat Pursuer 75 | . . 75 Influence Decreases 287 | . 94 193 Time Decay 207 | . 94 113 Lost Part 80 | . . 80 Squads Dispatched 2 | . . 2 Investigation . | . . . Extermination . | . . . Reinforcement 2 | . . 2 Assault . | . . . Garrison . | . . . Intercept . | . . . Searches Triggered . | . . . Construction Impeded . | . . . Haulers Reinforced . | . . . Active Scanning Responses . | . . . Cargo Convoy Interrupts . | . . . Stealth | -11 -10 -9 --------- Run | Yrd Mat Mat Distress Signals 2 | . . 2 Communications Jammed . | . . . Distress Signals . | . . . Times Spotted 31 | . 9 22 Peak Tracking Total 11 | . 4 11 Tactical Retreats 3 | . . 3 Traps | -11 -10 -9 ------- Run | Yrd Mat Mat Traps Triggered . | . . . Indirectly . | . . . Trap Hack Attempts . | . . . Triggered . | . . . Disarmed . | . . . Reprogrammed . | . . . Reused . | . . . Traps Extracted . | . . . Installed . | . . . Triggered . | . . . Machines | -11 -10 -9 ---------- Run | Yrd Mat Mat Machines Disabled 2 | . . 2 Max in Single Turn 2 | . . 2 Machines Repaired . | . . . Machines Dismantled . | . . . Machines Sabotaged . | . . . Overloaded Fab Kills . | . . . Hacking | -11 -10 -9 --------- Run | Yrd Mat Mat Machines Accessed 11 | . 6 5 Terminals 8 | . 4 4 Fabricators . | . . . Repair Stations . | . . . Recycling Units 2 | . 2 . Scanalyzers 1 | . . 1 Garrison Access . | . . . Total Hacks 30 | . 14 16 Successful 17 | . 11 6 Failed 13 | . 3 10 Catastrophic . | . . . Database Lockouts . | . . . Manual 15 | . 5 10 Terminals 25 | . 10 15 Fabricators . | . . . Repair Stations . | . . . Recycling Units 4 | . 4 . Scanalyzers 1 | . . 1 Garrison Access . | . . . Terminal Hacks 6 | . 5 1 Record 1 | . 1 . Prototype ID Bank 1 | . 1 . Branch Access Points 1 | . . 1 Locate Traps 1 | . 1 . Surveillance Status 1 | . 1 . Patrol Status 1 | . 1 . Fabricator Hacks . | . . . Repair Station Hacks . | . . . Recycling Unit Hacks 2 | . 2 . Report Inventory 2 | . 2 . Scanalyzer . | . . . Garrison Access Hacks . | . . . Unauthorized Hacks 8 | . 3 5 Terminals 7 | . 2 5 Track 1 | . . 1 Assimilate 1 | . . 1 Botnet 4 | . 2 2 Operators 1 | . . 1 Fabricators . | . . . Repair Stations . | . . . Recycling Units 1 | . 1 . Monitor 1 | . 1 . Scanalyzers . | . . . Garrison Access . | . . . Data Cores Recovered . | . . . Used . | . . . Hacking Detections 9 | . 4 5 Full Trace Events . | . . . Feedback Events . | . . . Feedback Blocked . | . . . Robot Schematics Acquired . | . . . Robots Built . | . . . Authchips . | . . . Time . | . . . Total Robot Build Rating . | . . . Part Schematics Acquired . | . . . Parts Built . | . . . Authchips . | . . . Time . | . . . Total Part Build Rating . | . . . Part Studies Acquired . | . . . Parts Repaired . | . . . Time . | . . . Parts Recycled . | . . . Recycled Matter . | . . . Retrieved Matter . | . . . Retrieved Components . | . . . Parts Scanalyzed . | . . . Part Schematics Acquired . | . . . Parts Damaged . | . . . Bothacking | -11 -10 -9 ------------ Run | Yrd Mat Mat Used RIF Installer . | . . . Robots Hacked . | . . . Non-combat . | . . . Combat . | . . . Robot Hacks Applied . | . . . Relay Couplers Released . | . . . Fabnet Peak Effective % . | . . . Robots Rewired . | . . . Allies Hacked . | . . . Hacks Repelled . | . . . Allies | -11 -10 -9 -------- Run | Yrd Mat Mat Total Allies . | . . . Largest Group . | . . . Highest-Rated Group . | . . . Highest-Rated Ally . | . . . Total Orders . | . . . Ally Attacks . | . . . Total Damage . | . . . Kills . | . . . Allies Corrupted . | . . . Allies Melted . | . . . Intel | -11 -10 -9 ------- Run | Yrd Mat Mat Active Infowar (turns) . | . . . Robot Analysis Total . | . . . Derelict Logs Recovered . | . . . Drone Launches . | . . . Drone Recoveries . | . . . Exploration | -11 -10 -9 ------------- Run | Yrd Mat Mat Turns Passed 787 | 97 360 330 Spaces Moved 718 | 77 324 317 Core 31 | 11 3 17 Treads . | . . . Legs 314 | 66 248 . Wheels . | . . . Hover . | . . . Flight 373 | . 73 300 Fastest Speed 32 | 50 32 32 Average Speed 72 | 110 100 34 Slowest Speed 150 | 120 150 115 Overloaded Moves . | . . . Propulsion Burnouts . | . . . Robots Hopped 2 | . . 2 Potential Cave-ins . | . . . Cave-ins Triggered . | . . . Exploration Rate (%) 25 | 4 43 30 Regions Visited 2 Branch Regions . Pre-discovered Areas . | . . . Known Exits Taken 1 | . 1 . Unknown Exits Taken 1 | 1 . . Scrap Searched . | . . . Spaces Dug 2 | . . 2 Terrain Destroyed 4 | . . 4 Melee . | . . . Projectile . | . . . AOE 4 | . . 4 Terrain Rammed . | . . . Walls Destroyed . | . . . Machines Disabled . | . . . Actions | -11 -10 -9 --------- Run | Yrd Mat Mat Total 920 | 86 345 489 Wait 132 | 4 8 120 Move 712 | 76 323 313 Hop 2 | . . 2 Pick Up 4 | . 1 3 Fast Attach 10 | 6 3 1 Attach 3 | . 1 2 Detach . | . . . Swap 2 | . . 2 Drop 4 | . 3 1 Fire 35 | . 6 29 Melee . | . . . Ram 16 | . . 16 Kick . | . . . Crush . | . . . Escape Stasis . | . . . Rewire . | . . . Trap . | . . . Miscellaneous . | . . . Route ------- -11/Scrapyard -10/Materials -9/Materials (discovered 1 exit: Min) History --------- Turn | Location | Event 6 | -11/Scrapyard | Discovered new exit (range 16) 98 | -11/Scrapyard | Entered Materials 309 | -10/Materials | Build established: Mutant 350 | -10/Materials | Discovered new exit (range 8) 458 | -10/Materials | Identified exit to Materials 458 | -10/Materials | Entered another Materials area 458 | -9/Materials | Evolved 2 slots: Utility x2 462 | -9/Materials | Identified exit to Mines 768 | -9/Materials | Core integrity fell below 50% 783 | -9/Materials | Core integrity fell below 20% 788 | -9/Materials | Destroyed by Y-45 Defender with Beam Rifle Last Messages --------------- 00736_ Chain reaction triggered in Corrupted Lgt. Ion Engine. 00736_ Flight Unit fried. 00736_ S-10 Pest destroyed. 00738_ Acquired 6 matter. 00747_ Chain reaction triggered in Corrupted Lgt. Ion Engine. 00749_ VTOL Module destroyed. 00757_ Acquired 10 matter. 00761_ Lgt. Deuterium Engine destroyed. 00767_ EMP Blaster destroyed. 00770_ Weight Redist. System destroyed. 00770_ Y-45 Defender IFF system glitched. 00772_ Slammed into Y-45 Defender. 00772_ Destabilizing: System corrupted (+1). 00773_ Slammed into Y-45 Defender. 00773_ Signal Interpreter broken. 00773_ Destabilizing: Short circuit. 00774_ Slammed into Y-45 Defender. 00776_ Y-45 Defender misfires. 00776_ Slammed into Y-45 Defender. 00788_ Y-45 Defender IFF system glitched. Map ----- +----------------------------------------------------+ | ?????????????????????????????????????????????????? | | ???????????????????????????????????????>?????????? | | ?????????????????????????????????????????????????? | | ?????????????????????????????????????????????????? | | ?????????????????????????????????????????????????? | | ?????????????????????????????????????????????????? | | ?????????????????????????????????????????????????? | | ?????????????????????????????????????????????????? | | ?????????????????????????????????????????????????? | | ?????????????????????????????????????????????????? | | ?????????????????????????????????????????????????? | | ?????????????????????????????????????????????????? | | ?????????????????????????????????????????????????? | | ?????????????????????????????????????????????????? | | ?????????????????????????????????????????????????? | | ?????????????????????????????????????????????????? | | ?????????????????????????????????????????????????? | | ?????????????????????????????????????????????????? | | ?????????????????????????????????????????????????? | | ?????????????????????????????????????????????????? | | ?????????????????????????????????????????????????? | | ?????????????????????????????????????????????????? | | ????????????????????????????????????############## | | ??????????????????????#######???????? # | | ??????????????????????? Y ??????????# # | | ????????????????????????#@#???????????# # [ "T | | ????????????????????????#l#???????????# / | | ????????????????????????#%#???????????# ######## | | ????????????????????????#g#???????????# #??????? | | ????????????????????????#%#???????????# #??????? | | ????????????????????????#g#???????????# ####???? | | ????????????????????????#%#???????????# +???? | | ????????????????????????#%#???????????# ####???? | | ???????????????##########%#???????????# #??????? | | ???????????????# # #???????????# #??????? | | ???????????????# # #???????????# #??????? | | ??????????????## # ############# #######+ | | ??????????????#" = [" | | ??????????????## = % | | ??????????????## [ | | ??????????????#" " ####+###########+######### | | ??????????????## " #? ??????????????????? | | ???????????????# # """ ????????????????? | | ???????????????########## """ #???????????????? | | ????????????????????????# """ #???????????????? | | ????????????????????????# #???????????????? | | ????????????????????????# """ #???????????????? | | ????????????????????????# ""??????????????????? | | ????????????????????????# "???????????????????? | | ????????????????????????# ???????????????????? | +----------------------------------------------------+ Best States ------------- Heat Dissipation 28 Energy Generation 14 Energy Capacity 140 Matter Stores 300 Matter Capacity 300 Sight Range 16 Terrain Scan Density 10 Additional Mass Support 6 Evasion (%) 63 Targeting Accuracy 5 Item Schematics ----------------- None Robot Schematics ------------------ None Fabricated ------------ Nothing Repaired ---------- Nothing Studied --------- None Alien Tech Used ----------------- None Achievements -------------- None Challenges ------------ None Game ------ Seed JunkMiniNanovents Manual? 0 Play Time 00:16:13 Cumulative 200.1 hours Start 2025.10.25 @ 20:06:23 End 2025.10.25 @ 20:17:02 Sessions 1 Manual Loads 0 Difficulty Rogue Special Mode None Game No. 236 Rogue 62 Adventurer 174 Explorer 0 Win Type - Total 1 Types 1/0/0/0/0/0/0/0/0/0 Lore% 46 Gallery% 57 Achievement% 35 Wizard Run 0 Options --------- Layout 0 ASCII 0 Keyboard 1 Movement Numpad Keybinds 0 Fullscreen 1 Font 18/Terminus Map View 76x50 Zoom Use 0% Tactical HUD 1 Map Filters NONE Filters NONE Steam 1 RUN: ef65742c-420c-4053-8290-793243e5bc0b